fUSD/lending_fUSD_20260319
["ID","MTS","AMOUNT","RATE_DAILY","PERIOD"]
[408587806,1773905449355,-2185238.7795629,0.00016,2]
[408587807,1773905449369,-2464.99910315,0.0001601,2]
[408587808,1773905449379,-168.0,0.00016047,2]
[408587809,1773905449388,-614.271548,0.00016056,7]
[408587810,1773905449397,-1567.0,0.0001606,2]
[408587811,1773905449406,-757.0,0.00016062,2]
[408587812,1773905449417,-150.0,0.00016062,2]
[408587813,1773905449427,-150.0,0.00016062,2]
[408587814,1773905449436,-150.0,0.00016062,2]
[408587815,1773905449445,-150.0,0.00016062,2]
[408587816,1773905449454,-150.0,0.00016062,2]
[408587817,1773905449464,-150.0,0.00016062,2]
[408587818,1773905449473,-150.0,0.00016062,2]
[408587819,1773905449482,-150.0,0.00016062,2]
[408587820,1773905449491,-276.0,0.00016062,2]
[408587821,1773905449500,-1500.0,0.00016068,2]
[408587822,1773905449510,-1500.0,0.00016068,2]
[408587823,1773905449519,-1500.0,0.00016068,2]
[408587824,1773905449529,-2313.13561604,0.00016069,3]
[408587825,1773905449544,-436.0,0.00016082,2]
[408587826,1773905449554,-500.0,0.00016164,2]
[408587827,1773905449564,-500.0,0.00016164,2]
[408587828,1773905449573,-150.0,0.00016164,2]
[408587829,1773905449583,-500.0,0.00016164,2]
[408587830,1773905449592,-150.0,0.00016164,2]
[408587831,1773905449601,-399.25540835,0.00016164,2]
[408587832,1773905449610,-150.0,0.00016164,2]
[408587833,1773905449620,-280.14759695,0.00016164,2]
[408587834,1773905449629,-150.0,0.00016164,2]
[408587835,1773905449637,-150.0,0.00016164,2]
[408587836,1773905449647,-150.0,0.00016164,2]
[408587837,1773905449656,-150.0,0.00016164,2]
[408587838,1773905449666,-150.0,0.00016164,2]
[408587839,1773905449676,-150.0,0.00016164,2]
[408587840,1773905449685,-150.0,0.00016164,2]
[408587841,1773905449694,-286.48877466,0.00016164,2]
[408587842,1773905449703,-150.0,0.00016164,2]
[408587843,1773905449712,-150.0,0.00016164,2]
[408587844,1773905449728,-156.12652739,0.00016164,2]
[408587845,1773905449737,-150.0,0.00016164,2]
[408587846,1773905449746,-150.0,0.00016164,2]
[408587847,1773905449755,-202.13850988,0.00016164,2]
[408587848,1773905449764,-178.47147906,0.00016164,2]
[408587849,1773905449773,-154.75024109,0.00016164,2]
[408587850,1773905449782,-500.0,0.00016164,2]
[408587851,1773905449792,-500.0,0.00016164,2]
[408587852,1773905449801,-500.0,0.00016164,2]
[408587853,1773905449810,-500.0,0.00016164,2]
[408587854,1773905449819,-150.0,0.00016164,2]
[408587855,1773905449828,-500.0,0.00016164,2]
[408587856,1773905449838,-500.0,0.00016164,2]
[408587857,1773905449847,-500.0,0.00016164,2]
[408587858,1773905449856,-207.36459101,0.00016164,2]
[408587859,1773905449865,-500.0,0.00016164,2]
[408587860,1773905449875,-500.0,0.00016164,2]
[408587861,1773905449884,-500.0,0.00016164,2]
[408587862,1773905449893,-500.0,0.00016164,2]
[408587863,1773905449902,-500.0,0.00016164,2]
[408587864,1773905449912,-500.0,0.00016164,2]
[408587865,1773905449921,-500.0,0.00016164,2]
[408587866,1773905449935,-542.50378378,0.00016164,2]
[408587867,1773905449944,-556.13980161,0.00016164,2]
[408587868,1773905449954,-608.69659724,0.00016164,2]
[408587869,1773905449964,-500.0,0.00016164,2]
[408587870,1773905449973,-500.0,0.00016164,2]
[408587872,1773905449982,-153.65437975,0.00016164,2]
[408587873,1773905449992,-500.0,0.00016164,2]
[408587874,1773905450001,-500.0,0.00016164,2]
[408587875,1773905450011,-500.0,0.00016164,2]
[408587876,1773905450020,-500.0,0.00016164,2]
[408587877,1773905450029,-500.0,0.00016164,2]
[408587879,1773905450039,-500.0,0.00016164,2]
[408587880,1773905450049,-484.98041623,0.00016164,2]
[408587882,1773905450058,-846.68886321,0.00016168,2]
[408587884,1773905450067,-1500.0,0.00016168,2]
[408587885,1773905450076,-1500.0,0.00016168,2]
[408587886,1773905450084,-1500.0,0.00016168,2]
[408587887,1773905450093,-1500.0,0.00016168,2]
[408587888,1773905450102,-1176.85294544,0.00016168,2]
[408587889,1773905450111,-1500.0,0.00016168,2]
[408587890,1773905450120,-1500.0,0.00016168,2]
[408587891,1773905450129,-1500.0,0.00016168,2]
[408587892,1773905450139,-1500.0,0.00016168,2]
[408587893,1773905450149,-168.0,0.00016182,2]
[408587894,1773905450157,-8581.87,0.000162,2]
[408587895,1773905450167,-4095.59,0.000162,2]
[408587896,1773905450176,-5000.00080342,0.000162,5]
[408587897,1773905450186,-2464.99910315,0.00016229,2]
[408587898,1773905450195,-5194.0,0.00016233,5]
[408587899,1773905450205,-4446.0,0.00016233,5]
[408587900,1773905450214,-500.0,0.00016239,2]
[408587901,1773905450223,-500.0,0.00016239,2]
[408587902,1773905450233,-150.0,0.00016253,2]
[408587903,1773905450243,-150.0,0.00016253,2]
[408587904,1773905450252,-150.0,0.00016253,2]
[408587905,1773905450261,-150.0,0.00016253,2]
[408587906,1773905450270,-150.0,0.00016253,2]
[408587907,1773905450279,-178.0,0.00016253,2]
[408587908,1773905450288,-168.0,0.00016265,2]
[408587909,1773905450298,-3851.12,0.00016282,2]
[408587910,1773905450307,-5072.64,0.000163,2]
[408587911,1773905450316,-7697.38,0.000163,2]
[408587912,1773905450328,-168.0,0.00016307,2]
[408587913,1773905450337,-757.0,0.00016329,2]
[408587914,1773905450346,-168.0,0.0001633,2]
[408587915,1773905450355,-1500.0,0.00016333,2]
[408587916,1773905450364,-200.0,0.00016368,2]
[408587917,1773905450373,-757.0,0.0001638,2]
[408587918,1773905450382,-25000.0,0.000164,3]
[408587919,1773905450392,-25000.0,0.000164,3]
[408587920,1773905450402,-1014.00185196,0.00016412,2]
[408587921,1773905450411,-3000.0,0.00016412,2]
[408587922,1773905450420,-757.0,0.00016412,2]
[408587923,1773905450429,-300.48566061,0.00016438,2]
[408587924,1773905450441,-268.04458326,0.00016438,2]
[408587925,1773905450450,-900.0,0.00016438,2]
[408587926,1773905450459,-1000.0,0.00016438,2]
[408587927,1773905450468,-749.15231234,0.00016438,2]
[408587928,1773905450477,-1000.0,0.00016438,2]
[408587929,1773905450487,-1555.32045901,0.00016438,2]
[408587930,1773905450496,-1737.27887045,0.00016438,2]
[408587931,1773905450505,-900.0,0.00016453,2]
[408587932,1773905450514,-900.0,0.00016453,2]
[408587933,1773905450523,-900.0,0.00016453,2]
[408587934,1773905450535,-900.0,0.00016453,2]
[408587935,1773905450544,-900.0,0.00016453,2]
[408587936,1773905450553,-900.0,0.00016453,2]
[408587937,1773905450562,-900.0,0.00016453,2]
[408587938,1773905450572,-900.0,0.00016453,2]
[408587939,1773905450582,-900.0,0.00016453,2]
[408587940,1773905450592,-768.0,0.00016453,2]
[408587941,1773905450603,-151.0,0.00016497,2]
[408587942,1773905450612,-300.0,0.00016499,2]
[408587943,1773905450622,-3299.09,0.000165,2]
[408587944,1773905450632,-1007.95,0.000165,2]
[408587945,1773905450642,-263.9,0.00016548,2]
[408587946,1773905450652,-501.0,0.00016585,4]
[408587947,1773905450661,-757.0,0.00016613,2]
[408587948,1773905450671,-2000.0,0.00016616,2]
[408587949,1773905450680,-2000.0,0.00016616,2]
[408587950,1773905450689,-419.01,0.00016632,2]
[408587951,1773905450698,-168.0,0.00016632,2]
[408587952,1773905450707,-263.9,0.00016657,2]
[408587953,1773905450719,-3922.94171058,0.0001666,2]
[408587954,1773905450728,-3851.12,0.0001667,2]
[408587955,1773905450737,-161.11,0.00016699,2]
[408587956,1773905450746,-419.01,0.00016716,2]
[408587957,1773905450755,-2000.0,0.00016716,2]
[408587958,1773905450764,-1050.20986564,0.00016716,2]
[408587959,1773905450773,-2000.0,0.00016716,2]
[408587960,1773905450783,-2074.83203376,0.00016716,2]
[408587961,1773905450793,-1887.45023446,0.00016716,2]
[408587962,1773905450802,-2000.0,0.00016716,2]
[408587963,1773905450811,-263.89726696,0.00016766,2]
[408587964,1773905450820,-1567.0,0.0001678,2]
[408587965,1773905450830,-1000.0,0.00016787,2]
[408587966,1773905450839,-1000.0,0.00016787,2]
[408587967,1773905450849,-419.01,0.000168,2]
[408587968,1773905450859,-506.03,0.00016823,2]
[408587969,1773905450868,-321.01,0.00016823,2]
[408587970,1773905450877,-2258.0,0.00016828,2]
[408587971,1773905450886,-9035.0,0.00016828,2]
[408587972,1773905450895,-1761.07123,0.0001683,2]
[408587973,1773905450904,-1761.07123,0.0001683,2]
[408587974,1773905450914,-1761.07123,0.0001683,2]
[408587975,1773905450923,-168.0,0.00016838,2]
[408587976,1773905450932,-300.0,0.00016849,2]
[408587977,1773905450941,-757.0,0.00016854,2]
[408587978,1773905450950,-757.0,0.00016875,2]
[408587979,1773905450959,-300.0,0.00016885,2]
[408587980,1773905450968,-349.0,0.00016888,2]
[408587981,1773905450977,-757.0,0.000169,2]
[408587982,1773905450986,-300.0,0.000169,2]
[408587983,1773905450995,-3620.0,0.00016905,2]
[408587984,1773905451004,-300.0,0.00016925,2]
[408587985,1773905451013,-300.0,0.00016959,2]
[408587986,1773905451022,-1985.61475363,0.0001696,2]
[408587987,1773905451032,-310.30278726,0.00016961,2]
[408587988,1773905451041,-324700.8864905,0.00016962,2]
[408587989,1773905451051,-2402.0,0.00016965,2]
[408587990,1773905451060,-300.0,0.00016986,2]
[408587991,1773905451070,-573022.4745347,0.00017,2]
[408587992,1773905451080,-152.33701866,0.00017,2]
[408587993,1773905451089,-182485.5814845,0.00017,2]
[408587994,1773905451101,-300.0,0.00017,2]
[408587995,1773905451110,-300.0,0.00017,2]
[408587996,1773905451120,-1761.07123,0.00017,2]
[408587997,1773905451129,-1761.07123,0.00017,2]
[408587998,1773905451138,-1761.07123,0.00017,2]
[408587999,1773905451148,-803.09530237,0.00017014,2]
[408588000,1773905451157,-1330.0,0.0001704,2]
[408588001,1773905451167,-2402.0,0.0001704,2]
[408588002,1773905451177,-6325.0,0.00017044,2]
[408588003,1773905451186,-3851.12,0.00017058,2]
[408588004,1773905451196,-803.09530237,0.00017068,2]
[408588005,1773905451205,-152.0,0.00017072,19]
[408588006,1773905451215,-11861.06006266,0.000171,2]
[408588007,1773905451224,-803.09530237,0.00017151,2]
[408588008,1773905451234,-1506.68098994,0.00017164,2]
[408588009,1773905451243,-919.75064279,0.00017164,2]
[408588010,1773905451252,-803.09530237,0.00017205,2]
[408588011,1773905451261,-152.0,0.00017218,20]
[408588012,1773905451270,-2239.45808294,0.00017264,2]
[408588013,1773905451279,-2500.0,0.00017264,2]
[408588014,1773905451289,-800.27066196,0.00017264,2]
[408588015,1773905451298,-150.0,0.0001728,5]
[408588016,1773905451307,-500.0,0.00017288,2]
[408588017,1773905451316,-1500.0,0.00017335,2]
[408588018,1773905451326,-1500.0,0.00017335,2]
[408588019,1773905451335,-2402.0,0.0001736,2]
[408588020,1773905451344,-5478.0,0.00017365,2]
[408588021,1773905451354,-152.0,0.00017365,21]
[408588022,1773905451363,-501.0,0.00017398,5]
[408588023,1773905451371,-8581.87,0.000174,2]
[408588024,1773905451380,-4095.59,0.000174,2]
[408588025,1773905451390,-3451.0,0.00017437,2]
[408588026,1773905451399,-3698.0,0.000175,2]
[408588027,1773905451408,-29046.6831292,0.000175,2]
[408588028,1773905451418,-152.0,0.00017512,22]
[408588029,1773905451427,-5072.64,0.000176,2]
[408588030,1773905451436,-7697.38,0.000176,2]
[408588031,1773905451604,-152.0,0.00017659,23]
[408588032,1773905451622,-5800.0,0.00017677,2]
[408588033,1773905451632,-5800.0,0.00017685,2]
[408588034,1773905451641,-5800.0,0.00017694,2]
[408588035,1773905451650,-787.41713564,0.000177,2]
[408588036,1773905451659,-403.0,0.000177,5]
[408588037,1773905451672,-5800.0,0.00017702,2]
[408588038,1773905451681,-5800.0,0.00017711,2]
[408588039,1773905451690,-158.65,0.00017719,2]
[408588040,1773905451699,-9115.0,0.00017737,2]
[408588041,1773905451709,-3759.53,0.000178,2]
[408588042,1773905451718,-3299.09,0.000178,2]
[408588043,1773905451727,-1007.95,0.000178,2]
[408588044,1773905451736,-700.0,0.000178,6]
[408588045,1773905451746,-152.0,0.00017806,24]
[408588046,1773905451755,-800.0,0.00017808,2]
[408588047,1773905451764,-1903.26880992,0.00017812,2]
[408588048,1773905451773,-4347.20013888,0.0001782,30]
[408588049,1773905451782,-401.85269954,0.0001782,2]
[408588050,1773905451791,-6235.0,0.00017847,2]
[408588051,1773905451808,-1008.18773367,0.0001786,2]
[408588052,1773905451820,-2000.0,0.00017883,2]
[408588053,1773905451830,-283.01281,0.00017884,7]
[408588054,1773905451840,-1230.12037766,0.0001789,2]
[408588055,1773905451850,-1077.92416152,0.0001789,2]
[408588056,1773905451860,-7917.48002796,0.000179,2]
[408588057,1773905451869,-7917.48002796,0.000179,2]
[408588058,1773905451879,-7917.48002796,0.000179,2]
[408588059,1773905451889,-7917.48002796,0.000179,2]
[408588060,1773905451899,-4869.20679927,0.000179,2]
[408588061,1773905451908,-4869.20679926,0.000179,2]
[408588062,1773905451919,-4869.20679926,0.000179,2]
[408588063,1773905451929,-4869.20679926,0.000179,2]
[408588064,1773905451939,-3631.01915132,0.000179,3]
[408588065,1773905451949,-1640.0,0.000179,6]
[408588066,1773905451958,-152.0,0.00017953,25]
[408588067,1773905451968,-20000.0,0.0001799,2]
[408588068,1773905451978,-151.0,0.00017997,2]
[408588069,1773905451988,-151.0,0.00017997,2]
[408588070,1773905451998,-151.0,0.00017997,2]
[408588071,1773905452009,-151.0,0.00017997,2]
[408588072,1773905452018,-151.0,0.00017997,2]
[408588073,1773905452028,-151.0,0.00017997,2]
[408588074,1773905452038,-151.0,0.00017997,2]
[408588075,1773905452048,-4550.0,0.00017999,2]
[408588076,1773905452058,-300.0,0.00017999,2]
[408588077,1773905452068,-174.95,0.00018,2]
[408588078,1773905452078,-1871.59275449,0.00018,5]
[408588079,1773905452089,-9778.89455827,0.00018,2]
[408588080,1773905452099,-9797645.51770346,0.00018,2]
[408588081,1773905452110,-108230.83994869,0.00018,2]
[408588082,1773905452120,-1000.0,0.00018,2]
[408588083,1773905452130,-907399.81779543,0.00018,2]
[408588084,1773905452140,-182.34773519,0.00018,2]
[408588085,1773905452149,-156.155265,0.00018,2]
[408588086,1773905452168,-151.0,0.00018,2]
[408588087,1773905452178,-151.0,0.00018,2]
[408588088,1773905452188,-151.0,0.00018,2]
[408588089,1773905452198,-151.0,0.00018,2]
[408588090,1773905452208,-151.0,0.00018,2]
[408588091,1773905452218,-257.295806,0.00018,2]
[408588092,1773905452229,-151.0,0.00018,2]
[408588093,1773905452239,-151.0,0.00018,2]
[408588094,1773905452250,-151.0,0.00018,2]
[408588095,1773905452260,-151.0,0.00018,2]
[408588096,1773905452270,-151.0,0.00018,2]
[408588097,1773905452279,-151.0,0.00018,2]
[408588098,1773905452290,-151.0,0.00018,2]
[408588099,1773905452300,-151.0,0.00018,2]
[408588100,1773905452310,-151.0,0.00018,2]
[408588101,1773905452320,-151.0,0.00018,2]
[408588102,1773905452329,-151.0,0.00018,2]
[408588103,1773905452339,-166.392178,0.00018,2]
[408588104,1773905452351,-166.392178,0.00018,2]
[408588105,1773905452361,-151.0,0.00018,2]
[408588106,1773905452371,-166.392178,0.00018,2]
[408588107,1773905452381,-166.392178,0.00018,2]
[408588108,1773905452391,-151.0,0.00018,2]
[408588109,1773905452401,-151.0,0.00018,2]
[408588110,1773905452411,-181.764695,0.00018,2]
[408588111,1773905452421,-151.0,0.00018,2]
[408588112,1773905452431,-181.764695,0.00018,2]
[408588113,1773905452440,-181.764695,0.00018,2]
[408588114,1773905452450,-181.764695,0.00018,2]
[408588115,1773905452459,-151.0,0.00018,2]
[408588116,1773905452469,-151.0,0.00018,2]
[408588117,1773905452479,-151.0,0.00018,2]
[408588118,1773905452488,-158.620648,0.00018,2]
[408588119,1773905452497,-151.0,0.00018,2]
[408588120,1773905452507,-151.0,0.00018,2]
[408588121,1773905452517,-279.803604,0.00018,2]
[408588122,1773905452526,-151.0,0.00018,2]
[408588123,1773905452540,-252.360534,0.00018,2]
[408588124,1773905452549,-252.360534,0.00018,2]
[408588125,1773905452559,-151.0,0.00018,2]
[408588126,1773905452568,-252.360534,0.00018,2]
[408588127,1773905452577,-252.360534,0.00018,2]
[408588128,1773905452587,-151.0,0.00018,2]
[408588129,1773905452596,-151.0,0.00018,2]
[408588130,1773905452605,-151.0,0.00018,2]
[408588131,1773905452614,-151.0,0.00018,2]
[408588132,1773905452624,-151.0,0.00018,2]
[408588133,1773905452633,-151.0,0.00018,2]
[408588134,1773905452642,-151.0,0.00018,2]
[408588135,1773905452651,-151.0,0.00018,2]
[408588136,1773905452660,-151.0,0.00018,2]
[408588137,1773905452671,-151.0,0.00018,2]
[408588138,1773905452680,-151.0,0.00018,2]
[408588139,1773905452690,-151.0,0.00018,2]
[408588140,1773905452700,-151.0,0.00018,2]
[408588141,1773905452709,-151.0,0.00018,2]
[408588142,1773905452718,-151.0,0.00018,2]
[408588143,1773905452728,-151.0,0.00018,2]
[408588144,1773905452738,-151.0,0.00018,2]
[408588145,1773905452751,-151.0,0.00018,2]
[408588146,1773905452761,-151.0,0.00018,2]
[408588147,1773905452770,-151.0,0.00018,2]
[408588148,1773905452780,-151.0,0.00018,2]
[408588149,1773905452790,-151.0,0.00018,2]
[408588150,1773905452799,-151.0,0.00018,2]
[408588151,1773905452809,-151.0,0.00018,2]
[408588152,1773905452818,-499.928054,0.00018,2]
[408588153,1773905452828,-151.0,0.00018,2]
[408588154,1773905452838,-151.0,0.00018,2]
[408588155,1773905452847,-151.0,0.00018,2]
[408588156,1773905452857,-499.928054,0.00018,2]
[408588157,1773905452867,-151.0,0.00018,2]
[408588158,1773905452876,-499.928054,0.00018,2]
[408588159,1773905452886,-151.0,0.00018,2]
[408588160,1773905452895,-151.0,0.00018,2]
[408588161,1773905452905,-151.0,0.00018,2]
[408588162,1773905452915,-151.0,0.00018,2]
[408588163,1773905452925,-499.928054,0.00018,2]
[408588164,1773905452935,-151.0,0.00018,2]
[408588165,1773905452944,-151.0,0.00018,2]
[408588166,1773905452954,-151.0,0.00018,2]
[408588167,1773905452963,-199.112982,0.00018,2]
[408588168,1773905452972,-151.0,0.00018,2]
[408588169,1773905452982,-151.0,0.00018,2]
[408588170,1773905452991,-151.0,0.00018,2]
[408588171,1773905453001,-189.183701,0.00018,2]
[408588172,1773905453010,-151.0,0.00018,2]
[408588173,1773905453020,-189.183701,0.00018,2]
[408588174,1773905453030,-151.0,0.00018,2]
[408588175,1773905453039,-189.183701,0.00018,2]
[408588176,1773905453048,-189.183701,0.00018,2]
[408588177,1773905453058,-151.0,0.00018,2]
[408588178,1773905453068,-151.0,0.00018,2]
[408588179,1773905453077,-151.0,0.00018,2]
[408588180,1773905453087,-151.0,0.00018,2]
[408588181,1773905453096,-151.0,0.00018,2]
[408588182,1773905453106,-151.0,0.00018,2]
[408588183,1773905453115,-151.0,0.00018,2]
[408588184,1773905453125,-205.658426,0.00018,2]
[408588185,1773905453135,-151.0,0.00018,2]
[408588186,1773905453144,-151.0,0.00018,2]
[408588187,1773905453154,-151.0,0.00018,2]
[408588188,1773905453164,-151.0,0.00018,2]
[408588189,1773905453173,-151.0,0.00018,2]
[408588190,1773905453183,-151.0,0.00018,2]
[408588191,1773905453192,-267.249242,0.00018,2]
[408588192,1773905453202,-267.249242,0.00018,2]
[408588193,1773905453212,-151.0,0.00018,2]
[408588194,1773905453221,-267.249242,0.00018,2]
[408588195,1773905453230,-151.0,0.00018,2]
[408588196,1773905453240,-151.0,0.00018,2]
[408588197,1773905453249,-267.249242,0.00018,2]
[408588198,1773905453259,-151.0,0.00018,2]
[408588199,1773905453269,-151.0,0.00018,2]
[408588200,1773905453279,-291.547711,0.00018,2]
[408588201,1773905453289,-151.0,0.00018,2]
[408588202,1773905453298,-291.547711,0.00018,2]
[408588203,1773905453307,-151.0,0.00018,2]
[408588204,1773905453317,-151.0,0.00018,2]
[408588205,1773905453326,-291.547711,0.00018,2]
[408588206,1773905453335,-159.649357,0.00018,2]
[408588207,1773905453344,-178.908183,0.00018,2]
[408588208,1773905453353,-291.547711,0.00018,2]
[408588209,1773905453363,-317.087267,0.00018,2]
[408588210,1773905453373,-151.0,0.00018,2]
[408588211,1773905453383,-317.087267,0.00018,2]
[408588212,1773905453393,-317.087267,0.00018,2]
[408588213,1773905453402,-258.70875,0.00018,2]
[408588214,1773905453413,-317.087267,0.00018,2]
[408588215,1773905453423,-258.70875,0.00018,2]
[408588216,1773905453433,-258.70875,0.00018,2]
[408588217,1773905453443,-151.0,0.00018,2]
[408588218,1773905453453,-263.0094,0.00018,2]
[408588219,1773905453465,-258.70875,0.00018,2]
[408588220,1773905453475,-151.0,0.00018,2]
[408588221,1773905453485,-256.650636,0.00018,2]
[408588222,1773905453495,-306.351399,0.00018,2]
[408588223,1773905453504,-306.351399,0.00018,2]
[408588224,1773905453514,-306.351399,0.00018,2]
[408588225,1773905453523,-151.0,0.00018,2]
[408588226,1773905453535,-306.351399,0.00018,2]
[408588227,1773905453546,-151.0,0.00018,2]
[408588228,1773905453555,-176.292229,0.00018,2]
[408588229,1773905453565,-151.0,0.00018,2]
[408588230,1773905453574,-151.0,0.00018,2]
[408588231,1773905453585,-151.0,0.00018,2]
[408588232,1773905453595,-151.0,0.00018,2]
[408588233,1773905453605,-151.0,0.00018,2]
[408588234,1773905453615,-151.0,0.00018,2]
[408588235,1773905453624,-151.0,0.00018,2]
[408588236,1773905453634,-151.0,0.00018,2]
[408588237,1773905453644,-151.0,0.00018,2]
[408588238,1773905453653,-151.0,0.00018,2]
[408588239,1773905453663,-151.0,0.00018,2]
[408588240,1773905453673,-151.0,0.00018,2]
[408588241,1773905453683,-427.611471,0.00018,2]
[408588242,1773905453692,-151.0,0.00018,2]
[408588243,1773905453702,-427.611471,0.00018,2]
[408588244,1773905453711,-427.611471,0.00018,2]
[408588245,1773905453721,-427.611471,0.00018,2]
[408588246,1773905453730,-847.000962,0.00018,2]
[408588247,1773905453739,-847.000962,0.00018,2]
[408588248,1773905453748,-151.0,0.00018,2]
[408588249,1773905453757,-847.000962,0.00018,2]
[408588250,1773905453766,-222.257964,0.00018,2]
[408588251,1773905453775,-847.000962,0.00018,2]
[408588252,1773905453785,-151.0,0.00018,2]
[408588253,1773905453795,-222.257964,0.00018,2]
[408588254,1773905453804,-179.112024,0.00018,2]
[408588255,1773905453813,-222.257964,0.00018,2]
[408588256,1773905453822,-222.257964,0.00018,2]
[408588257,1773905453832,-151.0,0.00018,2]
[408588258,1773905453841,-151.0,0.00018,2]
[408588259,1773905453851,-175.010543,0.00018,2]
[408588260,1773905453860,-442.198869,0.00018,2]
[408588261,1773905453870,-151.0,0.00018,2]
[408588262,1773905453879,-442.198869,0.00018,2]
[408588263,1773905453889,-5000.0,0.00018,2]
[408588264,1773905453899,-3873.084931,0.00018,2]
[408588265,1773905453908,-442.198869,0.00018,2]
[408588266,1773905453918,-189.332028,0.00018,2]
[408588267,1773905453928,-442.198869,0.00018,2]
[408588268,1773905453937,-268.457719,0.00018,2]
[408588269,1773905454277,-189.332028,0.00018,2]
[408588270,1773905454296,-268.457719,0.00018,2]
[408588271,1773905454307,-268.457719,0.00018,2]
[408588272,1773905454316,-189.332028,0.00018,2]
[408588273,1773905454326,-189.332028,0.00018,2]
[408588274,1773905454335,-268.457719,0.00018,2]
[408588275,1773905454345,-151.0,0.00018,2]
[408588276,1773905454355,-151.0,0.00018,2]
[408588277,1773905454364,-194.211479,0.00018,2]
[408588278,1773905454374,-151.0,0.00018,2]
[408588279,1773905454383,-151.0,0.00018,2]
[408588280,1773905454392,-194.211479,0.00018,2]
[408588281,1773905454401,-151.0,0.00018,2]
[408588282,1773905454411,-151.0,0.00018,2]
[408588283,1773905454422,-151.0,0.00018,2]
[408588284,1773905454431,-194.211479,0.00018,2]
[408588285,1773905454441,-151.0,0.00018,2]
[408588286,1773905454451,-194.211479,0.00018,2]
[408588287,1773905454460,-213.824497,0.00018,2]
[408588288,1773905454470,-151.0,0.00018,2]
[408588289,1773905454479,-151.0,0.00018,2]
[408588290,1773905454489,-151.0,0.00018,2]
[408588291,1773905454499,-213.824497,0.00018,2]
[408588292,1773905454508,-151.0,0.00018,2]
[408588293,1773905454517,-151.0,0.00018,2]
[408588294,1773905454527,-151.0,0.00018,2]
[408588295,1773905454539,-213.824497,0.00018,2]
[408588296,1773905454549,-151.0,0.00018,2]
[408588297,1773905454558,-213.824497,0.00018,2]
[408588298,1773905454567,-200.509264,0.00018,2]
[408588299,1773905454578,-200.509264,0.00018,2]
[408588300,1773905454588,-263.351625,0.00018,2]
[408588301,1773905454599,-200.509264,0.00018,2]
[408588302,1773905454611,-182.486897,0.00018,2]
[408588303,1773905454620,-263.351625,0.00018,2]
[408588304,1773905454629,-200.509264,0.00018,2]
[408588305,1773905454640,-151.0,0.00018,2]
[408588306,1773905454650,-182.486897,0.00018,2]
[408588307,1773905454659,-263.351625,0.00018,2]
[408588308,1773905454671,-544.326923,0.00018,2]
[408588309,1773905454680,-182.486897,0.00018,2]